fUSD/lending_fUSD_20240426
["ID","MTS","AMOUNT","RATE_DAILY","PERIOD"]
[323644627,1714146719025,-350.69866385,0.0001401,2]
[323644628,1714146719035,-500.0,0.0001401,2]
[323644629,1714146719045,-500.0,0.0001401,2]
[323644630,1714146719054,-500.0,0.0001401,2]
[323644631,1714146719068,-500.0,0.0001401,2]
[323644632,1714146719079,-703.76,0.0001401,2]
[323644633,1714146719089,-151.0,0.0001401,2]
[323644634,1714146719099,-723.08,0.0001401,2]
[323644635,1714146719109,-151.0,0.0001401,2]
[323644636,1714146719118,-500.0,0.0001401,2]
[323644637,1714146719128,-500.0,0.0001401,2]
[323644638,1714146719137,-938.799363,0.0001401,2]
[323644639,1714146719146,-188.8,0.0001401,2]
[323644640,1714146719155,-938.799363,0.0001401,2]
[323644641,1714146719165,-503.30118105,0.0001401,2]
[323644642,1714146719174,-571.51,0.0001401,2]
[323644643,1714146719184,-151.406843,0.0001401,2]
[323644644,1714146719194,-151.406843,0.0001401,2]
[323644645,1714146719203,-151.838361,0.0001401,2]
[323644646,1714146719213,-500.0,0.0001401,2]
[323644647,1714146719224,-500.0,0.0001401,2]
[323644648,1714146719233,-151.838361,0.0001401,2]
[323644649,1714146719243,-504.42098659,0.0001401,2]
[323644650,1714146719252,-504.19112242,0.0001401,2]
[323644651,1714146719262,-1700.69,0.0001401,2]
[323644652,1714146719273,-500.0,0.0001401,2]
[323644653,1714146719282,-500.0,0.0001401,2]
[323644654,1714146719292,-562.44324639,0.0001401,2]
[323644655,1714146719301,-597.04,0.0001401,2]
[323644656,1714146719312,-500.0,0.0001401,2]
[323644657,1714146719322,-500.0,0.0001401,2]
[323644658,1714146719331,-370.859548,0.0001401,2]
[323644659,1714146719341,-370.859548,0.0001401,2]
[323644660,1714146719350,-151.0,0.0001401,2]
[323644661,1714146719361,-500.0,0.0001401,2]
[323644662,1714146719371,-341.106249,0.0001401,2]
[323644663,1714146719380,-151.0,0.0001401,2]
[323644664,1714146719390,-341.106249,0.0001401,2]
[323644665,1714146719399,-500.0,0.0001401,2]
[323644666,1714146719408,-283.067612,0.0001401,2]
[323644667,1714146719418,-151.0,0.0001401,2]
[323644668,1714146719428,-980.11,0.0001401,2]
[323644669,1714146719437,-654.78,0.0001401,2]
[323644670,1714146719447,-206.878577,0.0001401,2]
[323644671,1714146719456,-665.45,0.0001401,2]
[323644672,1714146719466,-206.878577,0.0001401,2]
[323644673,1714146719476,-500.0,0.0001401,2]
[323644674,1714146719488,-408.559922,0.0001401,2]
[323644675,1714146719499,-500.0,0.0001401,2]
[323644676,1714146719508,-408.559922,0.0001401,2]
[323644677,1714146719518,-500.0,0.0001401,2]
[323644678,1714146719530,-151.0,0.0001401,2]
[323644679,1714146719539,-506.25,0.0001401,2]
[323644680,1714146719549,-151.0,0.0001401,2]
[323644681,1714146719560,-500.0,0.0001401,2]
[323644682,1714146719569,-500.0,0.0001401,2]
[323644683,1714146719578,-500.0,0.0001401,2]
[323644684,1714146719588,-500.0,0.0001401,2]
[323644685,1714146719597,-170.65,0.0001401,2]
[323644686,1714146719606,-507.24,0.0001401,2]
[323644687,1714146719616,-500.0,0.0001401,2]
[323644688,1714146719625,-151.0,0.0001401,2]
[323644689,1714146719635,-151.0,0.0001401,2]
[323644690,1714146719645,-500.0,0.0001401,2]
[323644691,1714146719655,-499.399205,0.0001401,2]
[323644692,1714146719665,-499.399205,0.0001401,2]
[323644693,1714146719674,-500.0,0.0001401,2]
[323644694,1714146719684,-500.0,0.0001401,2]
[323644695,1714146719693,-500.0,0.0001401,2]
[323644696,1714146719703,-500.0,0.0001401,2]
[323644697,1714146719713,-817.8,0.0001401,2]
[323644698,1714146719722,-503.39658036,0.0001401,2]
[323644699,1714146719732,-151.0,0.0001401,2]
[323644700,1714146719741,-500.0,0.0001401,2]
[323644701,1714146719751,-500.0,0.0001401,2]
[323644702,1714146719760,-724.235046,0.0001401,2]
[323644703,1714146719770,-821.193898,0.0001401,2]
[323644704,1714146719779,-530.95,0.0001401,2]
[323644705,1714146719788,-500.0,0.0001401,2]
[323644706,1714146719798,-724.235046,0.0001401,2]
[323644707,1714146719807,-821.193898,0.0001401,2]
[323644708,1714146719818,-500.0,0.0001401,2]
[323644709,1714146719827,-399.502372,0.0001401,2]
[323644710,1714146719837,-151.0,0.0001401,2]
[323644711,1714146719846,-2123.887604,0.0001401,2]
[323644712,1714146719855,-399.502372,0.0001401,2]
[323644713,1714146719864,-500.0,0.0001401,2]
[323644714,1714146719873,-2123.887604,0.0001401,2]
[323644715,1714146719882,-500.0,0.0001401,2]
[323644716,1714146719890,-280.292196,0.0001401,2]
[323644717,1714146719900,-2166.536851,0.0001401,2]
[323644718,1714146719909,-2592.246621,0.0001401,2]
[323644719,1714146719919,-151.0,0.0001401,2]
[323644720,1714146719928,-632.586953,0.0001401,2]
[323644721,1714146719938,-2592.246621,0.0001401,2]
[323644722,1714146719947,-2166.536851,0.0001401,2]
[323644723,1714146719957,-151.0,0.0001401,2]
[323644724,1714146719966,-500.0,0.0001401,2]
[323644725,1714146719975,-542.25,0.0001401,2]
[323644726,1714146719985,-632.586953,0.0001401,2]
[323644727,1714146719995,-151.0,0.0001401,2]
[323644728,1714146720005,-597.96,0.0001401,2]
[323644729,1714146720014,-637.498523,0.0001401,2]
[323644730,1714146720024,-1358.88,0.0001401,2]
[323644731,1714146720033,-637.498523,0.0001401,2]
[323644732,1714146720042,-619.11,0.0001401,2]
[323644733,1714146720052,-1059.13,0.0001401,2]
[323644734,1714146720061,-399.541959,0.0001401,2]
[323644735,1714146720070,-500.0,0.0001401,2]
[323644736,1714146720080,-399.541959,0.0001401,2]
[323644737,1714146720089,-500.0,0.0001401,2]
[323644738,1714146720098,-621.09,0.0001401,2]
[323644739,1714146720107,-781.34,0.0001401,2]
[323644740,1714146720117,-500.0,0.0001401,2]
[323644741,1714146720126,-318.918391,0.0001401,2]
[323644742,1714146720135,-500.0,0.0001401,2]
[323644743,1714146720145,-603.94,0.0001401,2]
[323644744,1714146720154,-3661.332938,0.0001401,2]
[323644745,1714146720163,-318.918391,0.0001401,2]
[323644746,1714146720172,-830.456012,0.0001401,2]
[323644747,1714146720181,-3661.332938,0.0001401,2]
[323644748,1714146720191,-830.456012,0.0001401,2]
[323644749,1714146720200,-243.015856,0.0001401,2]
[323644750,1714146720209,-500.0,0.0001401,2]
[323644751,1714146720219,-243.015856,0.0001401,2]
[323644752,1714146720228,-151.0,0.0001401,2]
[323644753,1714146720239,-2203.32,0.0001401,2]
[323644754,1714146720249,-741.55,0.0001401,2]
[323644755,1714146720259,-151.0,0.0001401,2]
[323644756,1714146720268,-500.0,0.0001401,2]
[323644757,1714146720278,-779.309172,0.0001401,2]
[323644758,1714146720287,-779.309172,0.0001401,2]
[323644759,1714146720296,-707.05,0.0001401,2]
[323644760,1714146720306,-500.0,0.0001401,2]
[323644761,1714146720315,-151.0,0.0001401,2]
[323644762,1714146720324,-512.40614344,0.0001401,2]
[323644763,1714146720334,-500.0,0.0001401,2]
[323644764,1714146720344,-414.16,0.0001401,2]
[323644765,1714146720352,-1197.27,0.0001401,2]
[323644766,1714146720362,-525.11,0.0001401,2]
[323644767,1714146720372,-415.281327,0.0001401,2]
[323644768,1714146720381,-415.281327,0.0001401,2]
[323644769,1714146720390,-183.76882,0.0001401,2]
[323644770,1714146720399,-181.478534,0.0001401,2]
[323644771,1714146720409,-1151.01,0.0001401,2]
[323644772,1714146720418,-181.478534,0.0001401,2]
[323644773,1714146720428,-183.76882,0.0001401,2]
[323644774,1714146720438,-1089.37,0.0001401,2]
[323644775,1714146720448,-151.0,0.0001401,2]
[323644776,1714146720457,-500.0,0.0001401,2]
[323644777,1714146720466,-500.0,0.0001401,2]
[323644778,1714146720475,-151.232152,0.0001401,2]
[323644779,1714146720487,-151.232152,0.0001401,2]
[323644780,1714146720497,-271.979651,0.0001401,2]
[323644781,1714146720507,-151.0,0.0001401,2]
[323644782,1714146720517,-535.73,0.0001401,2]
[323644783,1714146720526,-271.979651,0.0001401,2]
[323644784,1714146720536,-500.0,0.0001401,2]
[323644785,1714146720546,-151.0,0.0001401,2]
[323644786,1714146720555,-1314.57,0.0001401,2]
[323644787,1714146720566,-500.0,0.0001401,2]
[323644788,1714146720575,-500.0,0.0001401,2]
[323644789,1714146720584,-354.999164,0.0001401,2]
[323644790,1714146720594,-354.999164,0.0001401,2]
[323644791,1714146720603,-446.343636,0.0001401,2]
[323644792,1714146720613,-500.0,0.0001401,2]
[323644793,1714146720622,-151.0,0.0001401,2]
[323644794,1714146720632,-1247.81,0.0001401,2]
[323644795,1714146720641,-446.343636,0.0001401,2]
[323644796,1714146720652,-312.379396,0.0001401,2]
[323644797,1714146720661,-500.0,0.0001401,2]
[323644798,1714146720670,-312.379396,0.0001401,2]
[323644799,1714146720680,-580.288637,0.0001401,2]
[323644800,1714146720690,-768.956536,0.0001401,2]
[323644801,1714146720700,-731.33,0.0001401,2]
[323644802,1714146720710,-768.956536,0.0001401,2]
[323644803,1714146720720,-383.64,0.0001401,2]
[323644804,1714146720730,-609.72,0.0001401,2]
[323644805,1714146720740,-580.288637,0.0001401,2]
[323644806,1714146720751,-376.301442,0.0001401,2]
[323644807,1714146720761,-713.5,0.0001401,2]
[323644808,1714146720770,-577.85,0.0001401,2]
[323644809,1714146720779,-155.307386,0.0001401,2]
[323644810,1714146720788,-376.301442,0.0001401,2]
[323644811,1714146720798,-3061.192014,0.0001401,2]
[323644812,1714146720807,-151.0,0.0001401,2]
[323644813,1714146720991,-3061.192014,0.0001401,2]
[323644814,1714146721020,-155.307386,0.0001401,2]
[323644815,1714146721030,-199.860073,0.0001401,2]
[323644816,1714146721040,-500.0,0.0001401,2]
[323644817,1714146721049,-500.0,0.0001401,2]
[323644818,1714146721059,-1867.18,0.0001401,2]
[323644819,1714146721068,-195.366368,0.0001401,2]
[323644820,1714146721077,-195.366368,0.0001401,2]
[323644821,1714146721087,-500.0,0.0001401,2]
[323644822,1714146721097,-2429.554249,0.0001401,2]
[323644823,1714146721106,-754.163296,0.0001401,2]
[323644824,1714146721116,-2385.902375,0.0001401,2]
[323644825,1714146721125,-910.362462,0.0001401,2]
[323644826,1714146721135,-2429.554249,0.0001401,2]
[323644827,1714146721145,-2385.902375,0.0001401,2]
[323644828,1714146721154,-754.163296,0.0001401,2]
[323644829,1714146721163,-910.362462,0.0001401,2]
[323644830,1714146721173,-1355.9,0.0001401,2]
[323644831,1714146721183,-151.0,0.0001401,2]
[323644832,1714146721193,-712.601466,0.0001401,2]
[323644833,1714146721203,-638.8,0.0001401,2]
[323644834,1714146721213,-603.07,0.0001401,2]
[323644835,1714146721222,-712.601466,0.0001401,2]
[323644836,1714146721232,-500.0,0.0001401,2]
[323644837,1714146721243,-500.0,0.0001401,2]
[323644838,1714146721252,-1301.29,0.0001401,2]
[323644839,1714146721263,-1267.477174,0.0001401,2]
[323644840,1714146721273,-500.0,0.0001401,2]
[323644841,1714146721282,-1267.477174,0.0001401,2]
[323644842,1714146721291,-500.0,0.0001401,2]
[323644843,1714146721301,-519.96,0.0001401,2]
[323644844,1714146721310,-1375.84,0.0001401,2]
[323644845,1714146721320,-678.19,0.0001401,2]
[323644846,1714146721330,-500.0,0.0001401,2]
[323644847,1714146721340,-724.11,0.0001401,2]
[323644848,1714146721350,-594.9,0.0001401,2]
[323644849,1714146721359,-616.05,0.0001401,2]
[323644850,1714146721369,-500.0,0.0001401,2]
[323644851,1714146721379,-1741.91,0.0001401,2]
[323644852,1714146721389,-500.0,0.0001401,2]
[323644853,1714146721399,-645.35,0.0001401,2]
[323644854,1714146721409,-1642.19,0.0001401,2]
[323644855,1714146721418,-877.55,0.0001401,2]
[323644856,1714146721428,-1878.46,0.0001401,2]
[323644857,1714146721438,-361.09182593,0.0001401,2]
[323644858,1714146721448,-2626.11,0.0001401,2]
[323644859,1714146721458,-608.86146972,0.0001401,2]
[323644860,1714146721467,-500.0,0.0001401,2]
[323644861,1714146721479,-800.34,0.0001401,2]
[323644862,1714146721489,-500.0,0.0001401,2]
[323644863,1714146721501,-160.0,0.00014024,2]
[323644864,1714146721510,-5015.37970179,0.00014067,2]
[323644865,1714146721521,-1000.0,0.000141,2]
[323644866,1714146721530,-500.0,0.00014115,2]
[323644867,1714146721540,-524.75,0.00014115,2]
[323644868,1714146721551,-500.0,0.00014115,2]
[323644869,1714146721561,-500.0,0.00014115,2]
[323644870,1714146721572,-500.0,0.00014115,2]
[323644871,1714146721581,-500.0,0.00014115,2]
[323644872,1714146721591,-912.86,0.00014115,2]
[323644873,1714146721600,-500.0,0.00014115,2]
[323644874,1714146721610,-614.45,0.00014115,2]
[323644875,1714146721620,-831.87,0.00014115,2]
[323644876,1714146721629,-500.0,0.00014115,2]
[323644877,1714146721639,-500.0,0.00014115,2]
[323644878,1714146721649,-500.0,0.00014115,2]
[323644879,1714146721659,-500.0,0.00014115,2]
[323644880,1714146721668,-1074.39,0.00014115,2]
[323644881,1714146721678,-500.0,0.00014115,2]
[323644882,1714146721687,-500.0,0.00014115,2]
[323644883,1714146721697,-500.0,0.00014115,2]
[323644884,1714146721707,-532.82,0.00014115,2]
[323644885,1714146721716,-517.38677167,0.00014115,2]
[323644886,1714146721725,-206.14179409,0.00014115,2]
[323644887,1714146721735,-773.66,0.00014115,2]
[323644888,1714146721745,-838.97,0.00014115,2]
[323644889,1714146721755,-500.0,0.00014115,2]
[323644890,1714146721765,-671.04,0.00014115,2]
[323644891,1714146721774,-500.0,0.00014115,2]
[323644892,1714146721783,-724.04,0.00014115,2]
[323644893,1714146721792,-500.0,0.00014115,2]
[323644894,1714146721801,-500.0,0.00014115,2]
[323644895,1714146721811,-659.6,0.00014115,2]
[323644896,1714146721822,-500.0,0.00014115,2]
[323644897,1714146721831,-543.48,0.00014115,2]
[323644898,1714146721841,-605.67,0.00014115,2]
[323644899,1714146721852,-804.0,0.00014115,2]
[323644900,1714146721862,-500.0,0.00014115,2]
[323644901,1714146721871,-512.65,0.00014115,2]
[323644902,1714146721882,-500.0,0.00014115,2]
[323644903,1714146721892,-500.0,0.00014115,2]
[323644904,1714146721903,-500.0,0.00014115,2]
[323644905,1714146721913,-733.06,0.00014115,2]
[323644906,1714146721922,-500.0,0.00014115,2]
[323644907,1714146721931,-500.0,0.00014115,2]
[323644908,1714146721940,-584.14,0.00014115,2]
[323644909,1714146721950,-500.0,0.00014115,2]
[323644910,1714146721959,-668.64,0.00014115,2]
[323644911,1714146721969,-535.33,0.00014115,2]
[323644912,1714146721978,-500.0,0.00014115,2]
[323644913,1714146721988,-500.0,0.00014115,2]
[323644914,1714146722004,-500.0,0.00014115,2]
[323644915,1714146722014,-500.0,0.00014115,2]
[323644916,1714146722023,-549.83,0.00014115,2]
[323644917,1714146722032,-500.0,0.00014115,2]
[323644918,1714146722041,-500.0,0.00014115,2]
[323644919,1714146722051,-206.55,0.00014115,2]
[323644920,1714146722060,-500.0,0.00014115,2]
[323644921,1714146722069,-500.0,0.00014115,2]
[323644922,1714146722079,-500.0,0.00014128,7]
[323644923,1714146722088,-500.0,0.00014128,7]
[323644924,1714146722098,-500.0,0.00014128,7]
[323644925,1714146722108,-152.0,0.00014149,8]
[323644926,1714146722117,-2000.0,0.000142,2]
[323644927,1714146722127,-644.42,0.00014281,2]
[323644928,1714146722137,-500.0,0.00014282,2]
[323644929,1714146722146,-500.0,0.00014282,2]
[323644930,1714146722156,-500.0,0.00014282,2]
[323644931,1714146722166,-500.0,0.00014282,2]
[323644932,1714146722175,-500.0,0.00014282,2]
[323644933,1714146722184,-500.0,0.00014282,2]
[323644934,1714146722194,-500.0,0.00014282,2]
[323644935,1714146722203,-500.0,0.00014282,2]
[323644936,1714146722212,-12541.59,0.00014282,2]
[323644937,1714146722223,-3067.93,0.00014282,2]
[323644938,1714146722232,-532.8,0.00014282,2]
[323644939,1714146722242,-683.29,0.00014282,2]
[323644940,1714146722251,-1060.15,0.00014282,2]
[323644941,1714146722261,-4294.42,0.00014282,2]
[323644942,1714146722270,-500.0,0.00014282,2]
[323644943,1714146722280,-539.52,0.00014282,2]
[323644944,1714146722289,-500.0,0.00014282,2]
[323644945,1714146722299,-2839.5,0.00014282,2]
[323644946,1714146722309,-500.0,0.00014282,2]
[323644947,1714146722318,-594.61,0.00014282,2]
[323644948,1714146722328,-786.04,0.00014282,2]
[323644949,1714146722338,-500.0,0.00014282,2]
[323644950,1714146722348,-633.46,0.00014282,2]
[323644951,1714146722357,-2454.05,0.00014282,2]
[323644952,1714146722366,-294.71887663,0.00014282,2]
[323644953,1714146722376,-556.65,0.00014282,2]
[323644954,1714146722385,-783.76,0.00014282,2]
[323644955,1714146722395,-603.38,0.00014282,2]
[323644956,1714146722404,-1769.72,0.00014282,2]
[323644957,1714146722414,-464.77331235,0.00014282,2]
[323644958,1714146722425,-541.56,0.00014282,2]
[323644959,1714146722435,-2540.34,0.00014282,2]
[323644960,1714146722445,-591.93,0.00014282,2]
[323644961,1714146722454,-545.47,0.00014282,2]
[323644962,1714146722464,-500.0,0.00014282,2]
[323644963,1714146722474,-500.0,0.00014282,2]
[323644964,1714146722487,-4729.62,0.00014282,2]
[323644965,1714146722500,-1995.34,0.00014282,2]
[323644966,1714146722510,-586.34,0.00014282,2]
[323644967,1714146722520,-500.0,0.00014282,2]
[323644968,1714146722529,-500.0,0.00014282,2]
[323644969,1714146722539,-2124.66,0.00014282,2]
[323644970,1714146722549,-3161.41,0.00014282,2]
[323644971,1714146722560,-1952.38,0.00014282,2]
[323644972,1714146722571,-2807.16,0.00014282,2]
[323644973,1714146722581,-638.27,0.00014282,2]
[323644974,1714146722591,-3223.34,0.00014282,2]
[323644975,1714146722600,-680.69,0.00014282,2]
[323644976,1714146722610,-431.74245107,0.00014282,2]
[323644977,1714146722620,-2296.89,0.00014282,2]
[323644978,1714146722630,-500.0,0.00014282,2]
[323644979,1714146722640,-500.0,0.00014282,2]
[323644980,1714146722651,-2368.71,0.00014282,2]
[323644981,1714146722661,-3149.73,0.00014282,2]
[323644982,1714146722671,-500.0,0.00014282,2]
[323644983,1714146722681,-7711.79,0.00014282,2]
[323644984,1714146722691,-712.4,0.00014282,2]
[323644985,1714146722701,-1361.6,0.00014282,2]
[323644986,1714146722710,-743.13,0.00014282,2]
[323644987,1714146722720,-2752.21,0.00014282,2]
[323644988,1714146722729,-1414.54,0.00014282,2]
[323644989,1714146722739,-3239.13,0.00014282,2]
[323644990,1714146722750,-1163.36,0.00014282,2]
[323644991,1714146722759,-770.5,0.00014282,2]
[323644992,1714146722769,-6880.92,0.00014282,2]
[323644993,1714146722778,-525.52,0.00014282,2]
[323644994,1714146722788,-2621.73,0.00014282,2]
[323644995,1714146722797,-500.0,0.00014282,2]
[323644996,1714146722807,-2133.22,0.00014282,2]
[323644997,1714146722816,-653.66,0.00014282,2]
[323644998,1714146722825,-1077.73,0.00014282,2]
[323644999,1714146722834,-580.16,0.00014282,2]
[323645000,1714146722843,-4821.94,0.00014282,2]
[323645001,1714146722852,-2598.62,0.00014282,2]
[323645002,1714146722861,-500.0,0.00014282,2]
[323645003,1714146722871,-1060.82,0.00014282,2]
[323645004,1714146722880,-584.82,0.00014282,2]
[323645005,1714146722889,-1830.64,0.00014282,2]
[323645006,1714146722900,-500.0,0.00014282,2]
[323645007,1714146722910,-500.0,0.00014282,2]
[323645008,1714146722919,-1584.6,0.00014282,2]
[323645009,1714146722928,-1347.81,0.00014282,2]
[323645010,1714146722937,-500.0,0.00014282,2]
[323645011,1714146722946,-500.0,0.00014282,2]
[323645012,1714146722955,-5879.51,0.00014282,2]
[323645013,1714146722965,-6325.77,0.00014282,2]
[323645014,1714146722975,-7205.06,0.00014282,2]
[323645015,1714146722985,-1130.16,0.00014282,2]
[323645016,1714146722997,-4293.14,0.00014282,2]
[323645017,1714146723007,-500.0,0.00014282,2]
[323645018,1714146723017,-4451.04,0.00014282,2]
[323645019,1714146723027,-813.86,0.00014282,2]
[323645020,1714146723036,-500.0,0.00014282,2]
[323645021,1714146723045,-500.0,0.00014283,2]
[323645022,1714146723055,-500.0,0.00014283,2]
[323645023,1714146723064,-500.0,0.00014283,2]
[323645024,1714146723073,-586.06,0.00014283,2]
[323645025,1714146723082,-551.67,0.00014283,2]
[323645026,1714146723091,-500.0,0.00014283,2]
[323645027,1714146723101,-536.41,0.00014283,2]
[323645028,1714146723111,-500.0,0.00014283,2]
[323645029,1714146723120,-500.02,0.00014283,2]
[323645030,1714146723129,-890.43,0.00014283,2]
[323645031,1714146723139,-899.93,0.00014283,2]
[323645032,1714146723147,-500.0,0.00014283,2]
[323645033,1714146723157,-500.0,0.00014283,2]
[323645034,1714146723166,-740.2,0.00014283,2]
[323645035,1714146723176,-669.41,0.00014283,2]
[323645036,1714146723185,-714.54,0.00014283,2]
[323645037,1714146723194,-703.44,0.00014283,2]
[323645038,1714146723203,-500.0,0.00014283,2]
[323645039,1714146723213,-1007.49,0.00014283,2]
[323645040,1714146723222,-673.51,0.00014283,2]
[323645041,1714146723231,-500.0,0.00014283,2]
[323645042,1714146723241,-816.79,0.00014283,2]
[323645043,1714146723251,-500.0,0.00014283,2]
[323645044,1714146723260,-787.38,0.00014283,2]
[323645045,1714146723270,-500.0,0.00014283,2]
[323645046,1714146723280,-976.83,0.00014283,2]
[323645047,1714146723289,-1809.25,0.00014283,2]
[323645048,1714146723298,-2201.55,0.00014283,2]
[323645049,1714146723308,-500.0,0.00014283,2]
[323645050,1714146723317,-503.98927633,0.00014283,2]
[323645051,1714146723326,-2475.02,0.00014283,2]
[323645052,1714146723336,-1021.24,0.00014283,2]
[323645053,1714146723346,-906.43,0.00014283,2]
[323645054,1714146723356,-500.0,0.00014283,2]
[323645055,1714146723366,-500.0,0.00014283,2]
[323645056,1714146723375,-1734.07,0.00014283,2]
[323645057,1714146723385,-1082.39,0.00014283,2]
[323645058,1714146723395,-507.5,0.00014283,2]
[323645059,1714146723404,-500.0,0.00014283,2]
[323645060,1714146723414,-500.0,0.00014283,2]
[323645061,1714146723424,-1366.4,0.00014283,2]
[323645062,1714146723433,-500.0,0.00014283,2]
[323645063,1714146723442,-1005.72,0.00014283,2]
[323645064,1714146723452,-500.0,0.00014283,2]
[323645065,1714146723461,-500.0,0.00014283,2]
[323645066,1714146723470,-1013.72,0.00014283,2]
[323645067,1714146723484,-988.03,0.00014283,2]
[323645068,1714146723494,-951.02,0.00014283,2]
[323645069,1714146723505,-882.88,0.00014283,2]
[323645070,1714146723514,-513.26,0.00014283,2]
[323645071,1714146723524,-1725.66,0.00014283,2]
[323645072,1714146723533,-500.0,0.00014283,2]
[323645073,1714146723542,-500.0,0.00014283,2]
[323645074,1714146723552,-1527.71,0.00014283,2]
[323645075,1714146723561,-682.76,0.00014283,2]
[323645076,1714146723570,-586.7,0.00014283,2]
[323645077,1714146723579,-522.14,0.00014283,2]
[323645078,1714146723589,-1626.54,0.00014283,2]
[323645079,1714146723598,-511.7,0.00014283,2]
[323645080,1714146723608,-500.0,0.00014283,2]
[323645081,1714146723617,-500.0,0.00014283,2]
[323645082,1714146723627,-500.0,0.00014283,2]
[323645083,1714146723637,-387.06,0.00014283,2]
[323645084,1714146723647,-1328.17,0.00014283,2]
[323645085,1714146723656,-500.0,0.00014283,2]
[323645086,1714146723667,-551.92,0.00014283,2]
[323645087,1714146723676,-500.0,0.00014283,2]
[323645088,1714146723686,-581.23,0.00014283,2]
[323645089,1714146723696,-500.0,0.00014283,2]
[323645090,1714146723708,-2126.22,0.00014283,2]
[323645091,1714146723718,-1925.01,0.00014283,2]
[323645092,1714146723727,-500.0,0.00014283,2]
[323645093,1714146723736,-544.69,0.00014283,2]
[323645094,1714146723748,-500.0,0.00014283,2]
[323645095,1714146723758,-1631.66,0.00014283,2]
[323645096,1714146723768,-500.0,0.00014283,2]
[323645097,1714146723778,-500.0,0.00014283,2]
[323645098,1714146723787,-1881.98,0.00014283,2]
[323645099,1714146723798,-500.0,0.00014283,2]
[323645100,1714146723808,-597.71,0.00014283,2]
[323645101,1714146723817,-2029.94,0.00014283,2]
[323645102,1714146723826,-1848.32,0.00014283,2]
[323645103,1714146723836,-1370.68,0.00014283,2]
[323645104,1714146723846,-1912.0,0.00014283,2]
[323645105,1714146723855,-661.25,0.00014283,2]
[323645106,1714146724051,-919.44,0.00014283,2]
[323645107,1714146724062,-216.03,0.00014283,2]
[323645108,1714146724073,-638.29,0.00014283,2]
[323645109,1714146724083,-1171.2,0.00014283,2]
[323645110,1714146724093,-5559.23,0.00014283,2]
[323645111,1714146724103,-500.0,0.00014283,2]
[323645112,1714146724113,-2143.51,0.00014283,2]
[323645113,1714146724122,-7686.77,0.00014283,2]
[323645114,1714146724132,-500.0,0.00014283,2]
[323645115,1714146724142,-500.0,0.00014283,2]
[323645116,1714146724151,-2569.43,0.00014283,2]
[323645117,1714146724161,-2739.23,0.00014283,2]
[323645118,1714146724171,-500.0,0.00014283,2]
[323645119,1714146724181,-500.0,0.00014283,2]
[323645120,1714146724191,-1792.37,0.00014283,2]
[323645121,1714146724201,-1653.79,0.00014283,2]
[323645122,1714146724210,-625.93,0.00014283,2]
[323645123,1714146724219,-500.0,0.00014283,2]
[323645124,1714146724228,-500.0,0.00014283,2]
[323645125,1714146724237,-1471.8,0.00014283,2]
[323645126,1714146724248,-1070.1,0.00014283,2]